bitfinex/quotes_BTCUSD_20240731
["timestamp","ask_amount","ask_price","bid_price","bid_amount"]
[1722436446562,0.03849891,66287.0,66280.0,0.014]
[1722436446774,0.00851,66288.0,66281.0,0.150872]
[1722436446775,0.07476412,66285.0,66281.0,0.150872]
[1722436447763,0.00851,66288.0,66285.0,0.0616]
[1722436447960,0.00851,66288.0,66287.0,0.150859]
[1722436448101,0.00851,66288.0,66285.0,0.0616]
[1722436448102,0.00851,66288.0,66285.0,0.212462]
[1722436448279,0.00851,66288.0,66286.0,0.15086]
[1722436448479,0.00851,66288.0,66281.0,0.014]
[1722436448686,0.07476412,66285.0,66281.0,0.014]
[1722436448888,0.07476412,66285.0,66284.0,0.150865]
[1722436449360,0.07476412,66285.0,66279.0,0.30175]
[1722436449558,0.07476412,66285.0,66282.0,0.150869]
[1722436450071,0.07476412,66285.0,66284.0,0.150865]
[1722436450204,0.07476412,66285.0,66284.0,0.014]
[1722436450857,0.07476412,66285.0,66283.0,0.150868]
[1722436451061,0.07476412,66285.0,66281.0,0.014]
[1722436451062,0.07476412,66285.0,66282.0,0.16487]
[1722436451418,0.00851,66288.0,66282.0,0.315736]
[1722436451627,0.00851,66288.0,66285.0,0.150863]
[1722436451966,0.00851,66288.0,66282.0,0.014]
[1722436452172,0.00851,66288.0,66286.0,0.15086]
[1722436452381,0.00851,66288.0,66287.0,0.150859]
[1722436453000,0.00851,66288.0,66287.0,0.754295]
[1722436453709,0.00851,66288.0,66287.0,0.768295]
[1722436454340,0.00851,66288.0,66287.0,0.754295]
[1722436454585,0.00851,66288.0,66287.0,1.28436472]
[1722436454946,0.00851,66288.0,66287.0,1.47972135]
[1722436455143,0.00851,66288.0,66287.0,1.34896472]
[1722436455622,0.00851,66288.0,66287.0,1.37196472]
[1722436456128,0.00851,66288.0,66287.0,1.67368272]
[1722436456530,0.00851,66288.0,66287.0,1.39996472]
[1722436456740,0.00851,66288.0,66287.0,1.38596472]
[1722436456933,0.00851,66288.0,66287.0,1.52144602]
[1722436457363,0.00851,66288.0,66287.0,1.53544602]
[1722436458242,0.00851,66288.0,66287.0,0.014]
[1722436458650,0.00851,66288.0,66282.0,0.31093762]
[1722436458651,0.00851,66288.0,66282.0,0.00920162]
[1722436458849,0.07476412,66285.0,66280.0,0.1386]
[1722436459229,0.07476412,66285.0,66284.0,0.150865]
[1722436459648,0.07476412,66285.0,66283.0,0.150867]
[1722436460298,0.07476412,66285.0,66280.0,0.02302256]
[1722436460730,0.07476412,66285.0,66280.0,0.00902256]
[1722436460946,0.07476412,66285.0,66280.0,0.150873]
[1722436461153,0.07476412,66285.0,66279.0,0.150876]
[1722436461592,0.07476412,66285.0,66280.0,0.150874]
[1722436462045,0.07576412,66285.0,66283.0,0.014]
[1722436462220,0.001,66285.0,66283.0,0.014]
[1722436463182,0.001,66285.0,66284.0,0.150865]
[1722436463608,0.001,66285.0,66284.0,0.80128892]
[1722436463825,0.001,66285.0,66284.0,1.25257164]
[1722436464020,0.00851,66288.0,66287.0,1.056013]
[1722436464193,0.00851,66288.0,66287.0,1.22856472]
[1722436465420,0.00851,66288.0,66287.0,0.92684672]
[1722436465874,0.00851,66288.0,66287.0,1.07632802]
[1722436466074,0.00851,66288.0,66287.0,1.09032802]
[1722436466075,0.00951,66288.0,66287.0,1.09032802]
[1722436466279,0.00951,66288.0,66287.0,1.39204602]
[1722436467386,0.00951,66288.0,66287.0,1.40604602]
[1722436467748,0.00951,66288.0,66287.0,0.95484672]
[1722436468343,0.00951,66288.0,66287.0,1.25656472]
[1722436469291,0.00951,66288.0,66287.0,1.26656472]
[1722436470301,0.00851,66288.0,66287.0,1.23856472]
[1722436470623,0.00951,66288.0,66287.0,1.26656472]
[1722436470822,0.00851,66288.0,66287.0,1.40204602]
[1722436471242,0.00851,66288.0,66287.0,1.38804602]
[1722436472429,0.00851,66288.0,66287.0,1.40204602]
[1722436472914,0.00851,66288.0,66287.0,1.41604602]
[1722436473159,0.00851,66288.0,66287.0,1.40204602]
[1722436473415,0.00851,66288.0,66287.0,1.38804602]
[1722436473636,0.00851,66288.0,66287.0,1.41604602]
[1722436475287,0.00851,66288.0,66287.0,1.63274602]
[1722436475707,0.00851,66288.0,66287.0,1.75274602]
[1722436475950,0.00851,66288.0,66287.0,2.05646402]
[1722436476159,0.00851,66288.0,66287.0,1.75474602]
[1722436476356,0.00851,66288.0,66287.0,2.32255477]
[1722436476560,0.00851,66301.0,66300.0,0.970847]
[1722436476774,0.00851,66301.0,66300.0,1.58575772]
[1722436479387,0.00851,66301.0,66300.0,1.59975772]
[1722436479854,0.00851,66301.0,66300.0,1.58575772]
[1722436480056,0.00851,66301.0,66300.0,1.61375772]
[1722436480291,0.00851,66301.0,66300.0,1.70575899]
[1722436480542,0.0005,66309.0,66300.0,1.70575899]
[1722436480543,0.0005,66309.0,66308.0,0.754055]
[1722436480790,0.0005,66309.0,66308.0,1.44492872]
[1722436480998,0.0005,66309.0,66308.0,1.74655072]
[1722436481213,0.0005,66309.0,66308.0,1.78500264]
[1722436481432,0.0005,66309.0,66308.0,2.04050264]
[1722436481643,0.0005,66309.0,66308.0,2.06992473]
[1722436482940,0.0005,66309.0,66308.0,2.04792473]
[1722436483446,0.0005,66309.0,66308.0,2.11592473]
[1722436483707,0.0005,66309.0,66308.0,2.13592473]
[1722436483914,0.0005,66309.0,66308.0,2.14992473]
[1722436484122,0.0005,66309.0,66308.0,2.43954673]
[1722436484378,0.0085,66312.0,66311.0,1.38724]
[1722436484582,0.0085,66312.0,66311.0,1.80927302]
[1722436484798,0.0085,66312.0,66311.0,2.12029474]
[1722436486144,0.0085,66312.0,66311.0,2.09829474]
[1722436486351,0.0085,66312.0,66311.0,2.11829474]
[1722436486788,0.0085,66312.0,66311.0,1.81068574]
[1722436487003,0.0085,66312.0,66311.0,1.82468574]
[1722436487169,0.0085,66312.0,66311.0,1.81068574]
[1722436487591,0.0085,66312.0,66311.0,1.82468574]
[1722436488172,0.0085,66312.0,66311.0,1.84468574]
[1722436488354,0.0085,66312.0,66311.0,1.84668574]
[1722436488999,0.0085,66312.0,66311.0,1.82468574]
[1722436491025,0.00851,66317.0,66316.0,0.01]
[1722436491302,0.00851,66317.0,66316.0,1.82070423]
[1722436491498,0.00851,66317.0,66316.0,1.84070423]
[1722436491718,0.00851,66317.0,66316.0,2.06560423]
[1722436491985,0.00851,66317.0,66316.0,2.08560423]
[1722436492206,0.00851,66317.0,66316.0,2.23508553]
[1722436492638,0.00083,66328.0,66316.0,2.23508553]
[1722436492639,0.00083,66328.0,66318.0,1.690673]
[1722436492863,0.00083,66328.0,66327.0,0.452304]
[1722436493069,0.00083,66328.0,66327.0,1.21219182]
[1722436493273,0.00083,66328.0,66327.0,1.32719309]
[1722436494627,0.06393,66328.0,66327.0,0.0072641]
[1722436494834,0.06393,66328.0,66327.0,0.75384]
[1722436495055,0.06393,66328.0,66327.0,0.76109384]
[1722436495270,0.06393,66328.0,66327.0,0.77509384]
[1722436495473,0.06393,66328.0,66327.0,0.88275772]
[1722436496017,0.06393,66328.0,66327.0,0.18100689]
[1722436496225,0.06393,66328.0,66327.0,0.04423889]
[1722436496469,0.14413,66328.0,66327.0,0.19500689]
[1722436496687,0.14413,66328.0,66327.0,0.04423889]
[1722436497124,0.14413,66328.0,66327.0,0.03525384]
[1722436497325,0.294895,66328.0,66327.0,0.03525384]
[1722436497537,0.294895,66328.0,66327.0,0.028]
[1722436498554,0.897957,66328.0,66327.0,0.028]
[1722436498763,0.294895,66328.0,66327.0,0.028]
[1722436499001,0.294895,66328.0,66327.0,0.03525913]
[1722436499239,0.294895,66328.0,66327.0,0.028]
[1722436499449,0.596426,66328.0,66327.0,0.028]
[1722436499859,0.294895,66328.0,66321.0,0.15078]
[1722436500069,0.14413,66328.0,66322.0,0.01029953]
[1722436500278,0.14413,66328.0,66327.0,0.480304]
[1722436500508,0.00083,66328.0,66327.0,0.93139172]
[1722436500713,0.00083,66328.0,66327.0,1.03471333]
[1722436500912,0.00083,66328.0,66327.0,1.04871333]
[1722436501114,0.00083,66328.0,66327.0,0.29487333]
[1722436501360,0.00083,66328.0,66327.0,0.02129914]
[1722436501994,0.593626,66328.0,66327.0,0.02129914]
[1722436502203,0.292095,66328.0,66327.0,0.02129914]
[1722436502398,0.593626,66328.0,66327.0,0.014]
[1722436502602,0.14133,66328.0,66319.0,0.301572]
[1722436502794,0.14133,66328.0,66320.0,0.301567]
[1722436503021,0.14133,66328.0,66327.0,0.028]
[1722436503271,0.593626,66328.0,66327.0,0.014]
[1722436503498,0.593626,66328.0,66318.0,0.0015542]
[1722436503499,0.150781,66322.0,66318.0,0.0015542]
[1722436503718,0.150786,66319.0,66318.0,0.0015542]
[1722436503970,0.15079,66317.0,66316.0,0.0015542]
[1722436504187,0.41822472,66317.0,66304.0,0.15082]
[1722436504400,0.07476412,66311.0,66305.0,0.0015542]
[1722436504619,0.07476412,66314.0,66305.0,0.0015542]
[1722436504824,0.150805,66311.0,66305.0,0.0015542]
[1722436505025,0.150805,66311.0,66305.0,0.1523722]
[1722436505233,0.301601,66313.0,66305.0,0.1523722]
[1722436505439,0.07476412,66314.0,66305.0,0.0015542]
[1722436505655,0.1508,66313.0,66306.0,0.150815]
[1722436505859,0.10970307,66316.0,66304.0,0.14955172]
[1722436506065,0.03910225,66315.0,66304.0,0.14955172]
[1722436506298,0.0654,66316.0,66304.0,0.14955172]
[1722436506508,0.0654,66316.0,66311.0,0.150804]
[1722436506737,0.216193,66316.0,66309.0,0.150808]
[1722436506970,0.150796,66315.0,66310.0,0.00103977]
[1722436507172,0.216194,66316.0,66309.0,0.150808]
[1722436507368,0.22556212,66314.0,66306.0,0.301629]
[1722436507573,0.0654,66316.0,66307.0,0.10796745]
[1722436507574,0.10976006,66316.0,66307.0,0.10796745]
[1722436507700,0.10976006,66316.0,66304.0,0.14955172]
[1722436507913,0.10976006,66316.0,66306.0,0.014]
[1722436508279,0.10976006,66316.0,66312.0,0.150802]
[1722436508490,0.04436006,66315.0,66314.0,0.150796]
[1722436508702,0.04436006,66320.0,66313.0,0.2167]
[1722436508881,0.0637,66322.0,66317.0,0.301578]
[1722436509064,0.0637,66322.0,66321.0,0.150781]
[1722436509457,0.0637,66322.0,66321.0,0.753907]
[1722436509663,0.04444214,66324.0,66323.0,0.452331]
[1722436509858,0.0654,66327.0,66326.0,0.15077]
[1722436510056,0.00083,66328.0,66327.0,0.452304]
[1722436510264,0.00083,66328.0,66327.0,0.75384]
[1722436510895,0.00083,66328.0,66327.0,1.20492772]
[1722436511133,0.00083,66328.0,66327.0,1.37009049]
[1722436511321,0.00083,66328.0,66327.0,1.67162649]
[1722436511873,0.00083,66328.0,66327.0,1.69562649]
[1722436512077,0.00083,66328.0,66327.0,1.68162649]
[1722436512286,0.00083,66328.0,66327.0,1.78162649]
[1722436512506,0.00083,66328.0,66327.0,1.79462649]
[1722436512727,0.00083,66328.0,66327.0,1.85712649]
[1722436512933,0.00083,66328.0,66327.0,1.84412649]
[1722436513376,0.00083,66328.0,66327.0,1.85812649]
[1722436513753,0.00083,66328.0,66327.0,1.87212649]
[1722436513963,0.00083,66328.0,66327.0,1.85812649]
[1722436514862,0.00083,66328.0,66327.0,1.80962649]
[1722436515204,0.00083,66328.0,66327.0,1.48409049]
[1722436515556,0.00083,66328.0,66327.0,0.17755172]
[1722436515766,0.07559412,66328.0,66327.0,0.61585572]
[1722436515882,0.00083,66328.0,66327.0,0.91739172]
[1722436516085,0.00083,66328.0,66327.0,1.23292772]
[1722436516522,0.00083,66328.0,66327.0,1.37789049]
[1722436516737,0.00083,66328.0,66327.0,1.36389049]
[1722436517347,0.00083,66328.0,66327.0,1.37789049]
[1722436517716,0.00083,66328.0,66327.0,1.37113517]
[1722436518094,0.00083,66328.0,66327.0,1.08359917]
[1722436518899,0.00083,66328.0,66327.0,1.06959917]
[1722436519104,0.00083,66328.0,66327.0,1.08359917]
[1722436519839,0.00083,66328.0,66327.0,1.38513517]
[1722436520044,0.00083,66328.0,66327.0,1.08359917]
[1722436520582,0.00083,66328.0,66327.0,1.06959917]
[1722436520987,0.00083,66328.0,66327.0,1.08359917]
[1722436521161,0.00083,66328.0,66327.0,1.38513517]
[1722436521391,0.00083,66328.0,66327.0,1.40813517]
[1722436521594,0.00083,66328.0,66327.0,1.47813517]
[1722436522020,0.00083,66328.0,66327.0,1.79967117]
[1722436522228,0.00083,66328.0,66327.0,1.90167117]
[1722436523096,0.00083,66336.0,66329.0,0.032]
[1722436523299,0.00083,66336.0,66329.0,0.48726164]
[1722436523409,0.00083,66336.0,66335.0,0.980447]
[1722436523608,0.00083,66336.0,66335.0,1.46161389]
[1722436523857,0.00083,66336.0,66335.0,1.45161389]
[1722436524544,0.00083,66336.0,66335.0,1.23491389]
[1722436524750,0.00083,66336.0,66335.0,1.37240528]
[1722436524963,0.00083,66336.0,66335.0,0.59685556]
[1722436524964,0.06263,66336.0,66335.0,0.59685556]
[1722436525170,0.12952253,66336.0,66335.0,0.59685556]
[1722436525380,0.12952253,66336.0,66335.0,0.02111617]
[1722436525593,0.17409673,66336.0,66335.0,0.02111617]
[1722436525804,0.596772,66336.0,66335.0,0.02111617]
[1722436526009,0.596772,66336.0,66335.0,0.014]
[1722436526010,0.14453,66336.0,66335.0,0.014]
[1722436526209,0.97303112,66336.0,66335.0,0.014]
[1722436526381,1.01169935,66336.0,66335.0,0.028]
[1722436526620,1.12237557,66336.0,66335.0,0.028]
[1722436526839,1.90373214,66336.0,66335.0,0.028]
[1722436527037,0.0786,66314.0,66311.0,0.0015542]
[1722436527243,0.06684628,66312.0,66311.0,0.150802]
[1722436527453,0.06684577,66312.0,66311.0,0.754022]
[1722436527663,0.16772541,66314.0,66313.0,0.150799]
[1722436527664,0.14544577,66314.0,66313.0,0.150799]
[1722436527869,0.14544577,66314.0,66313.0,0.753997]
[1722436528042,0.14544577,66314.0,66313.0,0.150799]
[1722436528487,0.14544577,66314.0,66313.0,0.452398]
[1722436528693,0.0786,66314.0,66313.0,0.77333955]
[1722436528893,0.04456679,66314.0,66313.0,0.92289127]
[1722436529105,0.04456679,66316.0,66315.0,0.452385]
[1722436529362,0.04456679,66316.0,66315.0,0.90352672]
[1722436529568,0.06684998,66319.0,66315.0,0.45114172]
[1722436529773,0.0445652,66317.0,66316.0,0.14955172]
[1722436529949,0.0445652,66318.0,66317.0,0.20923434]
[1722436530096,0.0445652,66318.0,66317.0,0.753952]
[1722436530514,0.0445652,66318.0,66310.0,0.2167]
[1722436530725,0.16389742,66322.0,66313.0,0.012]
[1722436530726,0.25993144,66314.0,66313.0,0.012]
[1722436530923,0.32678075,66314.0,66313.0,0.012]
[1722436531125,0.21436412,66314.0,66305.0,0.301636]
[1722436531481,0.04455837,66307.0,66306.0,0.150814]
[1722436531615,0.06683756,66308.0,66307.0,0.150813]
[1722436531815,0.06683465,66308.0,66307.0,0.45244]
[1722436532244,0.06683465,66309.0,66308.0,0.452433]
[1722436532445,0.04455257,66310.0,66309.0,0.452427]
[1722436532648,0.04455257,66313.0,66309.0,0.39658023]
[1722436532821,0.04555257,66314.0,66313.0,0.753997]
[1722436533022,0.001,66314.0,66313.0,1.21249014]
[1722436533304,0.001,66314.0,66313.0,1.28769161]
[1722436533515,0.04455257,66315.0,66314.0,0.753987]
[1722436533721,0.06683465,66316.0,66315.0,0.452385]
[1722436533923,0.08912283,66317.0,66316.0,0.301585]
[1722436534129,0.24715521,66319.0,66318.0,0.150788]
[1722436534313,0.04457306,66320.0,66318.0,0.14955172]
[1722436534578,0.04457306,66321.0,66320.0,0.452352]
[1722436534797,0.04457306,66321.0,66320.0,1.29553489]
[1722436535012,0.04457224,66321.0,66320.0,0.1568735]
[1722436535210,0.08914449,66325.0,66321.0,0.452344]
[1722436535211,0.06685837,66322.0,66321.0,0.452344]
[1722436535412,0.06685837,66323.0,66322.0,0.150779]
[1722436535611,0.06685837,66323.0,66322.0,0.753897]
[1722436535741,0.08914449,66324.0,66323.0,0.452331]
[1722436536151,0.08914449,66325.0,66324.0,0.452323]
[1722436536354,0.08914449,66328.0,66325.0,0.301545]
[1722436536530,0.04458566,66327.0,66326.0,0.023]
[1722436536748,0.04458566,66331.0,66330.0,0.452283]
[1722436536990,0.00083,66336.0,66335.0,0.301499]
[1722436537207,0.09002267,66336.0,66335.0,0.753747]
[1722436537407,0.09002267,66336.0,66335.0,1.06250399]
[1722436537655,0.09002267,66336.0,66335.0,1.53500611]
[1722436537656,0.06773737,66336.0,66335.0,1.53500611]
[1722436537901,0.06773737,66336.0,66335.0,1.55800611]
[1722436537902,0.00083,66336.0,66335.0,1.55800611]
[1722436539044,0.00183,66336.0,66335.0,1.57100611]
[1722436539652,0.00183,66336.0,66335.0,1.54800611]
[1722436539787,0.00183,66336.0,66335.0,1.24650711]
[1722436539993,0.00183,66336.0,66335.0,0.93755671]
[1722436540192,0.00183,66336.0,66335.0,0.78800499]
[1722436540393,0.00083,66336.0,66335.0,0.77500499]
[1722436540607,0.00083,66336.0,66335.0,0.81113101]
[1722436540831,0.00183,66336.0,66335.0,0.81013101]
[1722436541400,0.00083,66336.0,66335.0,0.79713101]
[1722436541566,0.00083,66336.0,66335.0,0.49563201]
[1722436541839,0.12685423,66336.0,66335.0,0.02025799]
[1722436542048,0.21463651,66336.0,66335.0,0.17100699]
[1722436542260,0.21363651,66336.0,66335.0,0.753747]
[1722436542458,0.00083,66336.0,66335.0,0.85921715]
[1722436542664,0.04543258,66336.0,66335.0,0.85921715]
[1722436542868,0.00083,66336.0,66335.0,1.16071615]
[1722436543082,0.00083,66336.0,66335.0,1.17471615]
[1722436543281,0.04543258,66336.0,66335.0,1.06246967]
[1722436543695,0.04543258,66336.0,66335.0,1.07646967]
[1722436543696,0.00083,66336.0,66335.0,1.07646967]
[1722436543905,0.00183,66336.0,66335.0,1.07546967]
[1722436544109,0.00183,66336.0,66335.0,0.17097267]
[1722436544323,0.04543343,66336.0,66335.0,0.02122367]
[1722436544589,0.00083,66336.0,66335.0,0.48647167]
[1722436544830,0.00083,66336.0,66335.0,0.479248]
[1722436544831,0.00183,66336.0,66335.0,0.479248]
[1722436545069,0.00183,66336.0,66335.0,0.48640731]
[1722436545317,0.00183,66336.0,66335.0,0.78790631]
[1722436545553,0.0464201,66336.0,66335.0,1.08940531]
[1722436546025,0.0464201,66336.0,66335.0,1.19925631]
[1722436546279,0.0464201,66336.0,66335.0,1.95410703]
[1722436546280,0.00183,66336.0,66335.0,1.95410703]
[1722436546516,0.00183,66336.0,66335.0,2.03370703]
[1722436547003,0.00183,66336.0,66335.0,2.06370703]
[1722436547229,0.00183,66336.0,66335.0,1.84700703]
[1722436547483,0.00183,66336.0,66335.0,2.14850603]
[1722436547694,0.0156602,66349.0,66348.0,0.15072]
[1722436547910,0.0156602,66349.0,66348.0,1.42253372]
[1722436548148,0.0156602,66349.0,66348.0,1.85109611]
[1722436548581,0.0156602,66349.0,66348.0,2.15253611]
[1722436548789,0.0156602,66349.0,66348.0,1.84909611]
[1722436549000,0.0085,66356.0,66355.0,0.331409]
[1722436549210,0.00083,66364.0,66362.0,0.01]
[1722436549438,0.00083,66364.0,66362.0,1.48758386]
[1722436549694,0.00083,66364.0,66362.0,1.94914374]
[1722436550438,0.00083,66364.0,66363.0,1.386174]
[1722436550677,0.00083,66364.0,66363.0,1.55872572]
[1722436550935,0.00083,66364.0,66363.0,1.5656571]
[1722436551150,0.00083,66364.0,66363.0,1.7670081]
[1722436551402,0.00083,66364.0,66363.0,1.8154839]
[1722436551640,0.00083,66364.0,66363.0,2.3769801]
[1722436551895,0.0038973,66373.0,66372.0,1.387989]
[1722436552099,0.0038973,66373.0,66372.0,2.01528272]
[1722436552315,0.0038973,66373.0,66372.0,2.02216871]
[1722436553231,0.0038973,66373.0,66372.0,2.03616871]
[1722436553444,0.0038973,66373.0,66372.0,2.10216372]
[1722436553645,0.0038973,66373.0,66372.0,2.08538968]
[1722436553848,0.0038973,66373.0,66372.0,2.07938968]
[1722436554073,0.0038973,66373.0,66372.0,2.09938968]
[1722436554269,0.0038973,66373.0,66372.0,2.08738968]
[1722436554532,0.0038973,66373.0,66372.0,2.06538968]
[1722436554709,0.0038973,66373.0,66372.0,2.09338968]
[1722436555116,0.0038973,66373.0,66372.0,1.81961597]
[1722436555319,0.0038973,66373.0,66372.0,1.72483771]
[1722436555495,0.0038973,66373.0,66372.0,1.95956871]
[1722436555699,0.0038973,66373.0,66372.0,1.96295677]
[1722436555899,0.0038973,66373.0,66372.0,1.98780839]
[1722436556110,0.0038973,66373.0,66372.0,2.06580839]
[1722436556302,0.0038973,66373.0,66372.0,2.07980839]
[1722436556504,0.0038973,66373.0,66372.0,2.41036036]
[1722436556732,0.0038973,66373.0,66372.0,2.45188015]
[1722436556933,0.0038973,66373.0,66372.0,2.15054915]
[1722436557135,0.0038973,66373.0,66372.0,2.07780839]
[1722436557306,0.0038973,66373.0,66372.0,2.07980839]
[1722436557507,0.0038973,66373.0,66372.0,2.10102936]
[1722436557761,0.0038973,66373.0,66372.0,2.05780839]
[1722436557963,0.0038973,66373.0,66372.0,2.04380839]
[1722436558121,0.0038973,66373.0,66372.0,2.05780839]
[1722436558325,0.0038973,66373.0,66372.0,2.07780839]
[1722436558529,0.0038973,66373.0,66372.0,2.09180839]
[1722436558882,0.0038973,66373.0,66372.0,2.07980839]
[1722436559087,0.0038973,66373.0,66372.0,1.72769836]
[1722436559300,0.0038973,66373.0,66372.0,1.66147739]
[1722436559504,0.0038973,66373.0,66372.0,1.67147739]
[1722436559708,0.0038973,66373.0,66372.0,1.97280839]
[1722436559925,0.0038973,66373.0,66372.0,1.95880839]
[1722436560053,0.0038973,66373.0,66372.0,1.98080839]
[1722436560237,0.0038973,66373.0,66372.0,1.67147739]
[1722436560646,0.0038973,66373.0,66372.0,1.67047739]
[1722436561294,0.0038973,66373.0,66372.0,1.68447739]
[1722436561522,0.0038973,66373.0,66372.0,1.67047739]
[1722436561923,0.0038973,66373.0,66372.0,1.68447739]
[1722436562126,0.0038973,66373.0,66372.0,1.69447739]
[1722436562422,0.0038973,66373.0,66372.0,2.01780839]
[1722436562627,0.0038973,66373.0,66372.0,1.71071639]
[1722436562832,0.0038973,66373.0,66372.0,1.67047739]
[1722436563074,0.0038973,66373.0,66372.0,1.36914639]
[1722436563320,0.0038973,66373.0,66372.0,0.77461539]
[1722436563556,0.0038973,66373.0,66372.0,0.02427405]
[1722436564251,0.0038973,66373.0,66372.0,0.014]
[1722436564486,0.2328603,66373.0,66372.0,0.03806948]
[1722436564768,0.8970143,66373.0,66372.0,0.01006948]
[1722436565001,0.150672,66369.0,66362.0,0.150688]
[1722436565246,0.07476412,66368.0,66363.0,0.22653602]
[1722436565751,0.07476412,66368.0,66364.0,0.01009224]
[1722436566290,0.1436973,66373.0,66364.0,0.01009224]
[1722436566291,0.1436973,66373.0,66364.0,0.14955172]
[1722436566516,0.1436973,66373.0,66366.0,0.301356]
[1722436566762,0.1436973,66373.0,66372.0,0.451996]
[1722436567009,0.0038973,66373.0,66372.0,1.23353481]
[1722436567339,0.0038973,66373.0,66372.0,0.94227506]
[1722436567588,0.0038973,66373.0,66372.0,1.56793706]
[1722436567800,0.0038973,66373.0,66372.0,1.54493706]
[1722436567990,0.0038973,66373.0,66372.0,1.56793706]
[1722436568522,0.0038973,66373.0,66372.0,1.58193706]
[1722436569463,0.0038973,66373.0,66372.0,1.59593706]
[1722436570269,0.0038973,66373.0,66372.0,1.99326806]
[1722436570495,0.0038973,66373.0,66372.0,2.35320839]
[1722436570647,0.0038973,66373.0,66372.0,2.06470138]
[1722436571053,0.0038973,66373.0,66372.0,2.07470138]
[1722436571249,0.0038973,66373.0,66372.0,2.39003238]
[1722436571673,0.0038973,66373.0,66372.0,2.07470138]
[1722436571849,0.0038973,66373.0,66372.0,2.37603238]
[1722436572303,0.0038973,66373.0,66372.0,2.00209205]
[1722436572818,0.0038973,66373.0,66372.0,2.02409205]
[1722436573196,0.0038973,66373.0,66372.0,2.10389205]
[1722436573407,0.0085,66376.0,66375.0,1.086613]
[1722436573606,0.0085,66376.0,66375.0,1.33716472]
[1722436573809,0.0085,66376.0,66375.0,1.34730989]
[1722436574058,0.0085,66376.0,66375.0,1.33730989]
[1722436575319,0.0085,66376.0,66375.0,1.35130989]
[1722436575527,0.0085,66376.0,66375.0,1.50079119]
[1722436575893,0.0085,66376.0,66375.0,0.79815519]
[1722436576070,0.0085,66376.0,66375.0,1.11347319]
[1722436576772,0.0085,66376.0,66375.0,0.78415519]
[1722436577097,0.0085,66376.0,66375.0,1.09947319]
[1722436577318,0.0085,66376.0,66375.0,1.08547319]
[1722436577713,0.0085,66376.0,66375.0,1.09947319]
[1722436577893,0.0085,66376.0,66375.0,1.08547319]
[1722436578045,0.0085,66376.0,66375.0,1.09947319]
[1722436578255,0.0085,66376.0,66375.0,1.11347319]
[1722436578464,0.0085,66376.0,66375.0,1.09947319]
[1722436578666,0.0085,66376.0,66375.0,1.11347319]
[1722436578870,0.0085,66376.0,66375.0,0.33828547]
[1722436579297,0.460469,66376.0,66375.0,0.02414517]
[1722436579500,0.17467963,66376.0,66375.0,0.03814517]
[1722436579738,0.17467963,66376.0,66375.0,0.014]
[1722436579739,0.02402363,66376.0,66375.0,0.014]
[1722436579944,0.02402363,66376.0,66375.0,0.03811236]
[1722436580140,0.02402363,66376.0,66375.0,0.18877136]
[1722436580371,0.02402363,66376.0,66375.0,0.5552322]
[1722436580743,0.0085,66376.0,66375.0,0.71878392]
[1722436580915,0.0085,66376.0,66375.0,1.02010192]
[1722436581131,0.0085,66376.0,66375.0,1.00610192]
[1722436581341,0.0085,66376.0,66375.0,1.04310192]
[1722436581549,0.0085,66376.0,66375.0,1.02910192]
[1722436583063,0.0085,66376.0,66375.0,0.34732308]
[1722436583414,0.0085,66376.0,66375.0,0.64864108]
[1722436583614,0.0085,66376.0,66375.0,0.66264108]
[1722436583969,0.0085,66376.0,66375.0,0.96395908]
[1722436584556,0.0085,66376.0,66375.0,0.66264108]
[1722436584738,0.0085,66376.0,66375.0,0.75992282]
[1722436584940,0.0085,66376.0,66375.0,1.06124082]
[1722436588411,0.0085,66376.0,66375.0,0.75992282]
[1722436588824,0.0085,66376.0,66375.0,1.06124082]
[1722436589921,0.0085,66376.0,66375.0,0.75992282]
[1722436590646,0.0085,66376.0,66375.0,1.06124082]
[1722436591246,0.0085,66376.0,66375.0,1.05803412]
[1722436592025,0.0085,66376.0,66375.0,0.63643438]
[1722436592166,0.02401625,66376.0,66375.0,0.03490566]
[1722436592368,0.02401625,66376.0,66375.0,0.028]
[1722436592369,0.05621946,66376.0,66375.0,0.028]
[1722436592569,0.17467225,66376.0,66375.0,0.028]
[1722436592789,0.0085,66376.0,66375.0,1.53117038]
[1722436592966,0.13384402,66384.0,66381.0,0.01]
[1722436592967,0.06709022,66384.0,66381.0,0.01]
[1722436593164,0.0085,66386.0,66385.0,0.75318]
[1722436593362,0.0085,66386.0,66385.0,1.6264331]
[1722436593569,0.0085,66386.0,66385.0,1.7265331]
[1722436594226,0.0085,66386.0,66385.0,1.0468891]
[1722436594430,0.21459719,66386.0,66385.0,0.34442483]
[1722436594676,0.25932866,66386.0,66385.0,0.03523711]
[1722436594908,0.16301967,66386.0,66385.0,0.03523711]
[1722436595265,0.18886347,66386.0,66385.0,0.03523711]
[1722436595466,0.29732586,66386.0,66385.0,0.02123711]
[1722436595871,0.31365367,66386.0,66385.0,0.014]
[1722436596043,0.31365367,66386.0,66385.0,0.028]
[1722436596044,0.1888636,66386.0,66385.0,0.028]
[1722436596244,0.18818127,66386.0,66385.0,0.028]
[1722436596822,0.18818047,66386.0,66385.0,0.17184468]
[1722436597025,0.18818047,66386.0,66385.0,0.02120868]
[1722436597230,0.16301967,66386.0,66385.0,0.03520868]
[1722436597461,0.16301967,66386.0,66385.0,0.02120868]
[1722436597462,0.18819279,66386.0,66385.0,0.02120868]
[1722436598178,0.48998254,66386.0,66385.0,0.02120868]
[1722436598431,0.48998254,66386.0,66379.0,0.150649]
[1722436598625,0.13435879,66380.0,66374.0,0.30132]
[1722436598739,0.1343549,66378.0,66376.0,0.150655]
[1722436598944,0.1408,66376.0,66368.0,0.00906783]
[1722436599187,0.13435118,66374.0,66371.0,0.150667]
[1722436599360,0.01551967,66373.0,66371.0,0.150667]
[1722436599540,0.01551967,66372.0,66371.0,0.150667]
[1722436599741,0.14986265,66375.0,66371.0,0.150667]
[1722436599995,0.01551967,66374.0,66372.0,0.150664]
[1722436600200,0.14986265,66374.0,66372.0,0.150664]
[1722436600354,0.1408,66376.0,66374.0,0.150661]
[1722436600355,0.13434298,66375.0,66374.0,0.150661]
[1722436600559,0.14986894,66375.0,66374.0,0.451983]
[1722436600780,0.01552596,66375.0,66374.0,0.54226997]
[1722436600977,0.01552596,66375.0,66374.0,0.753305]